[Event "FIDE World School-ch O-17 2025"]
[Site "Vrnjacka Banja"]
[Date "2025.03.22"]
[Round "4.8"]
[White "Kanacki, Vuk"]
[Black "Gusev, Mikhail"]
[Result "1/2-1/2"]
[Annotator "TA"]
[ECO "A45"]
[WhiteElo "1956"]
[BlackElo "2250"]
[PlyCount "80"]
[EventDate "2025.03.19"]
[EventType "swiss"]
[EventCountry "SRB"]
[SourceTitle "playchess.com"]
[Source "ChessBase"]
[SourceQuality "1"]
[TimeControl "5400+30"]

{[%evp 9,80,-29,-32,-26,-13,-50,-53,-52,-52,-34,-15,-58,-35,-34,-31,-27,-25,-39,0,0,1,-14,-2,-6,0,-9,0,0,-5,-4,-8,-12,0,-9,0,-14,0,-5,0,-7,0,-24,-16,-16,-17,-22,-24,-29,-27,-34,-38,-44,-35,-36,-31,-33,-11,-16,-5,-12,-7,-6,0,0,19,30,29,0,0,0,0,0,0]} 1. d4 {[%emt 0:00:03]} Nf6 {[%emt 0:00:10]} 2. Bg5 {[%emt 0:00:17]} c5 {[%emt 0:01:29]} 3. dxc5 {[%emt 0:02:21]} e6 {[%emt 0:01:58]} 4. Nc3 {[%emt 0:00:34]} Bxc5 {[%emt 0:00:31]} 5. e3 {[%emt 0:03:01]} d5 {[%emt 0:03:09]} 6. Nf3 {[%emt 0:00:57] A45: Trompowsky Attack.} O-O {[%emt 0:00:57]} 7. Be2 {[%emt 0:00:57]} h6 {[%emt 0:00:11]} 8. Bh4 {[%emt 0:00:52] Black is slightly better.} Nc6 {[%emt 0:02:43]} 9. O-O {[%emt 0:00:36]} Be7 {[%emt 0:01:53]} 10. Qd2 $146 {[%emt 0:06:44]} (10. Bxf6 Bxf6 11. e4 Bxc3 12. bxc3 dxe4 13. Qxd8 Rxd8 14. Nd4 Nxd4 15. cxd4 Rxd4 {0-1 Tsediakov,L-Bauyrzhan,A (2029) Swiss Queens Wed #4 blitz 2024 (7)}) 10... b6 {[%emt 0:07:20]} 11. Rfd1 {[%emt 0:00:26]} Bb7 {[%emt 0:00:11]} 12. Qe1 {[%emt 0:00:12]} Rc8 {[%emt 0:03:55]} 13. a3 {[%emt 0:14:04]} Rc7 {[%emt 0:12:39]} 14. Nb5 {[%emt 0:05:01]} Rd7 {[%emt 0:00:29]} 15. Nbd4 {[%emt 0:00:20]} Ne4 {[%emt 0:03:40]} 16. Nxc6 {[%emt 0:02:16]} Bxc6 {[%emt 0:00:00]} 17. Bxe7 {[%emt 0:00:30]} Qxe7 {[%emt 0:00:04]} 18. Ne5 {[%emt 0:06:36]} Rc7 {[%emt 0:00:06]} 19. Nxc6 {[%emt 0:00:07]} Rxc6 {[%emt 0:00:02]} 20. c3 {[%emt 0:00:21]} Nc5 {[%emt 0:02:15]} 21. Bf3 {[%emt 0:02:21]} Rd8 {[%emt 0:01:45]} 22. Rac1 {[%emt 0:10:19]} Qf6 {[%emt 0:01:47]} 23. Rc2 {[%emt 0:03:47]} Nb3 {[%emt 0:04:59]} 24. e4 {[%emt 0:08:49]} dxe4 $1 {[%emt 0:01:31]} 25. Bxe4 {[%emt 0:01:48]} Rcd6 {[%emt 0:00:27]} 26. Rxd6 {[%emt 0:00:13]} Rxd6 {[%emt 0:00:00]} 27. Qe2 {[%emt 0:00:45] White is weak on the dark squares} Qd8 {[%emt 0:03:18] [#] ( -> ...Rd1+)} 28. Bf3 {[%emt 0:01:26]} Nd2 {[%emt 0:04:09]} 29. h3 {[%emt 0:03:09]} Nxf3+ {[%emt 0:00:50]} 30. Qxf3 $15 {[%emt 0:00:32][%mdl 4096] Endgame KQR-KQR} Rd1+ {[%emt 0:00:11]} 31. Kh2 {[%emt 0:00:19]} Qd6+ {[%emt 0:00:24]} 32. Qg3 {[%emt 0:00:49]} Qd5 {[%emt 0:01:26] [#] ...Qe4 is the strong threat.} 33. Qb8+ {[%emt 0:00:37]} Kh7 {[%emt 0:00:02]} (33... Qd8 {simplifies} 34. Qxd8+ Rxd8 35. c4 Kf8) 34. Qf4 {[%emt 0:00:24] Against Qe4} Qd3 {[%emt 0:01:47]} (34... a5 {seems wilder.} 35. Re2 Kg6 36. Re5 Qd6) 35. Rc1 {[%emt 0:01:06]} Rxc1 {[%emt 0:04:27]} 36. Qxc1 {[%emt 0:00:07]} e5 {[%emt 0:01:11]} 37. c4 {[%emt 0:02:58]} Kg6 {[%emt 0:00:58]} 38. c5 {[%emt 0:00:54]} bxc5 {[%emt 0:36:36] The position is equal.} 39. Qxc5 {[%emt 0:00:20]} Qd4 {[%emt 0:00:00]} 40. Qc6+ {[%emt 0:00:39]} f6 {[%emt 0:00:00] Weighted Error Value: White=0.06 (flawless) /Black=0.06 (flawless)   Inaccurate:     	White=3     	Black=1      OK:         	White=13    	Black=12     Best:        	White=1     	Black=1      Strong:       	---       	Black=1} 1/2-1/2